[Event "NJSK 2022 Meisjes A&B"]
[Site "Almelo, Netherlands"]
[Date "2022.05.02"]
[Round "2.3"]
[White "Cordes, Jule"]
[Black "Honkoop, Stella"]
[Result "1-0"]
[TimeControl "90min/40moves + 30min + 30sec/move"]
[WhiteElo "1802"]
[BlackElo "1711"]

1. d4 {[%clk 01:30:57]} {[%emt 00:00:02]} d6 {[%clk 01:30:54]} {[%emt
00:00:07]} 2. Nf3 {[%clk 01:31:18]} {[%emt 00:00:09]} g6 {[%clk 01:31:15]}
{[%emt 00:00:09]} 3. c4 {[%clk 01:31:32]} {[%emt 00:00:14]} Bg7 {[%clk
01:31:25]} {[%emt 00:00:20]} 4. Nc3 {[%clk 01:31:44]} {[%emt 00:00:18]} Nd7
{[%clk 01:31:23]} {[%emt 00:00:33]} 5. Bg5 {[%clk 01:31:06]} {[%emt 00:01:07]}
h6 {[%clk 01:31:36]} {[%emt 00:00:17]} 6. Bh4 {[%clk 01:30:50]} {[%emt
00:00:46]} f5 {[%clk 01:31:22]} {[%emt 00:00:44]} 7. e3 {[%clk 01:26:28]}
{[%emt 00:04:53]} g5 {[%clk 01:30:21]} {[%emt 00:01:31]} 8. Bg3 {[%clk
01:24:56]} {[%emt 00:02:01]} e5 {[%clk 01:29:02]} {[%emt 00:01:50]} 9. dxe5
{[%clk 01:13:34]} {[%emt 00:11:52]} dxe5 {[%clk 01:29:06]} {[%emt 00:00:25]} 10.
h4 {[%clk 00:52:17]} {[%emt 00:21:47]} f4 {[%clk 00:51:06]} {[%emt 00:38:30]}
11. exf4 {[%clk 00:51:08]} {[%emt 00:01:39]} gxf4 {[%clk 00:51:12]} {[%emt
00:00:25]} 12. Bh2 {[%clk 00:43:29]} {[%emt 00:08:08]} Ne7 {[%clk 00:47:09]}
{[%emt 00:04:34]} 13. Qc2 {[%clk 00:38:39]} {[%emt 00:05:19]} c6 {[%clk
00:41:23]} {[%emt 00:06:16]} 14. O-O-O {[%clk 00:29:48]} {[%emt 00:09:21]} Qa5
{[%clk 00:37:37]} {[%emt 00:04:17]} 15. Bd3 {[%clk 00:22:36]} {[%emt 00:07:42]}
Nc5 {[%clk 00:25:16]} {[%emt 00:12:50]} 16. Bg6+ {[%clk 00:20:32]} {[%emt
00:02:34]} Kf8 {[%clk 00:23:39]} {[%emt 00:02:07]} 17. Rhe1 {[%clk 00:08:31]}
{[%emt 00:12:31]} Bg4 {[%clk 00:23:25]} {[%emt 00:00:44]} 18. Rd6 {[%clk
00:07:38]} {[%emt 00:01:23]} Bxf3 {[%clk 00:17:59]} {[%emt 00:05:56]} 19. gxf3
{[%clk 00:08:07]} {[%emt 00:00:01]} Rd8 {[%clk 00:15:10]} {[%emt 00:03:19]} 20.
Rxd8+ {[%clk 00:04:47]} {[%emt 00:03:49]} Qxd8 {[%clk 00:15:39]} {[%emt
00:00:02]} 21. Rd1 {[%clk 00:03:53]} {[%emt 00:01:24]} Qc7 {[%clk 00:11:55]}
{[%emt 00:04:14]} 22. Ne4 {[%clk 00:02:49]} {[%emt 00:01:34]} Nxe4 {[%clk
00:09:00]} {[%emt 00:03:26]} 23. Qxe4 {[%clk 00:01:53]} {[%emt 00:01:25]} h5
{[%clk 00:07:40]} {[%emt 00:01:50]} 24. Bf5 {[%clk 00:01:27]} {[%emt 00:00:56]}
Rh6 {[%clk 00:06:07]} {[%emt 00:02:03]} 25. Rd7 {[%clk 00:01:33]} {[%emt
00:00:24]} Qb6 {[%clk 00:05:37]} {[%emt 00:00:58]} 26. Bxf4 {[%clk 00:01:23]}
{[%emt 00:00:42]} Nxf5 {[%clk 00:02:06]} {[%emt 00:04:02]} 27. Qxf5+ {[%clk
00:01:07]} {[%emt 00:00:46]} Rf6 {[%clk 00:02:08]} {[%emt 00:00:28]} 28. Qxe5
{[%clk 00:00:53]} {[%emt 00:00:44]} Rg6 {[%clk 00:01:21]} {[%emt 00:01:16]} 29.
Qe7+ {[%clk 00:00:39]} {[%emt 00:00:44]} Kg8 {[%clk 00:01:45]} {[%emt
00:00:06]} 30. Qf7+ {[%clk 00:00:43]} {[%emt 00:00:27]} Kh8 {[%clk 00:01:53]}
{[%emt 00:00:21]} 31. Qxg6 {[%clk 00:00:48]} {[%emt 00:00:25]} Qxb2+ {[%clk
00:00:44]} {[%emt 00:01:39]} 32. Kd1 {[%clk 00:01:12]} {[%emt 00:00:07]} Qa1+
{[%clk 00:00:47]} {[%emt 00:00:26]} 33. Bc1 {[%clk 00:01:17]} {[%emt 00:00:24]}
Qe5 {[%clk 00:00:34]} {[%emt 00:00:44]} 34. Rd8+ {[%clk 00:01:31]} {[%emt
00:00:35]} 1-0

[Event "NJSK 2022 Meisjes A&B"]
[Site "Almelo, Netherlands"]
[Date "2022.05.02"]
[Round "2.4"]
[White "Venema, Katja"]
[Black "Martinez, Sara"]
[Result "0-1"]
[TimeControl "90min/40moves + 30min + 30sec/move"]
[WhiteElo "1692"]
[BlackElo "1651"]

1. d4 {[%clk 01:30:57]} {[%emt 00:00:02]} d5 {[%clk 01:30:56]} {[%emt
00:00:05]} 2. c4 {[%clk 01:31:22]} {[%emt 00:00:05]} e6 {[%clk 01:31:22]}
{[%emt 00:00:04]} 3. Nc3 {[%clk 01:31:46]} {[%emt 00:00:05]} c5 {[%clk
01:31:45]} {[%emt 00:00:07]} 4. cxd5 {[%clk 01:31:40]} {[%emt 00:00:36]} cxd4
{[%clk 01:32:09]} {[%emt 00:00:07]} 5. Qxd4 {[%clk 01:31:28]} {[%emt 00:00:42]}
Nc6 {[%clk 01:32:18]} {[%emt 00:00:21]} 6. Qd1 {[%clk 01:30:41]} {[%emt
00:01:16]} exd5 {[%clk 01:32:27]} {[%emt 00:00:21]} 7. Qxd5 {[%clk 01:29:45]}
{[%emt 00:01:26]} Bd6 {[%clk 01:32:20]} {[%emt 00:00:37]} 8. Nf3 {[%clk
01:27:06]} {[%emt 00:03:10]} Nf6 {[%clk 01:32:17]} {[%emt 00:00:34]} 9. Qd1
{[%clk 01:24:13]} {[%emt 00:03:22]} O-O {[%clk 01:30:36]} {[%emt 00:02:10]} 10.
Bg5 {[%clk 01:21:05]} {[%emt 00:03:38]} h6 {[%clk 01:27:03]} {[%emt 00:04:03]}
11. Bh4 {[%clk 01:19:49]} {[%emt 00:01:46]} g5 {[%clk 01:20:23]} {[%emt
00:07:10]} 12. Bg3 {[%clk 01:18:01]} {[%emt 00:02:17]} Bb4 {[%clk 01:16:16]}
{[%emt 00:04:37]} 13. a3 {[%clk 01:15:23]} {[%emt 00:03:09]} Bxc3+ {[%clk
01:14:13]} {[%emt 00:02:33]} 14. bxc3 {[%clk 01:15:40]} {[%emt 00:00:12]} Qa5
{[%clk 01:14:32]} {[%emt 00:00:11]} 15. Rc1 {[%clk 01:11:04]} {[%emt 00:05:06]}
Ne4 {[%clk 01:06:31]} {[%emt 00:08:31]} 16. Qb3 {[%clk 01:07:43]} {[%emt
00:03:51]} Rd8 {[%clk 01:03:00]} {[%emt 00:04:01]} 17. e3 {[%clk 01:00:19]}
{[%emt 00:07:53]} Nc5 {[%clk 00:45:11]} {[%emt 00:18:19]} 18. Qa2 {[%clk
00:54:36]} {[%emt 00:06:13]} Be6 {[%clk 00:43:53]} {[%emt 00:01:48]} 19. Qb2
{[%clk 00:52:39]} {[%emt 00:02:28]} Nb3 {[%clk 00:35:18]} {[%emt 00:09:05]} 20.
Rc2 {[%clk 00:45:10]} {[%emt 00:07:58]} Qd5 {[%clk 00:30:42]} {[%emt 00:05:06]}
21. Be2 {[%clk 00:43:30]} {[%emt 00:02:10]} Bf5 {[%clk 00:30:02]} {[%emt
00:01:11]} 22. c4 {[%clk 00:40:15]} {[%emt 00:03:45]} Qa5+ {[%clk 00:28:56]}
{[%emt 00:01:36]} 23. Rc3 {[%clk 00:39:15]} {[%emt 00:01:29]} Nc5 {[%clk
00:27:55]} {[%emt 00:01:31]} 24. Qc1 {[%clk 00:29:11]} {[%emt 00:10:33]} Na4
{[%clk 00:25:51]} {[%emt 00:02:35]} 25. Bc7 {[%clk 00:26:35]} {[%emt 00:03:06]}
Qxc7 {[%clk 00:25:28]} {[%emt 00:00:53]} 26. Rb3 {[%clk 00:26:24]} {[%emt
00:00:41]} Nc5 {[%clk 00:21:39]} {[%emt 00:04:20]} 27. Rc3 {[%clk 00:22:24]}
{[%emt 00:04:29]} Nd3+ {[%clk 00:19:43]} {[%emt 00:02:25]} 28. Bxd3 {[%clk
00:22:45]} {[%emt 00:00:09]} Bxd3 {[%clk 00:20:07]} {[%emt 00:00:07]} 29. h4
{[%clk 00:21:21]} {[%emt 00:01:54]} g4 {[%clk 00:19:07]} {[%emt 00:01:30]} 30.
Nd2 {[%clk 00:21:04]} {[%emt 00:00:47]} Qe5 {[%clk 00:17:11]} {[%emt 00:02:25]}
31. Rb3 {[%clk 00:20:00]} {[%emt 00:01:35]} Qe6 {[%clk 00:11:26]} {[%emt
00:06:15]} 32. Rxb7 {[%clk 00:18:41]} {[%emt 00:01:49]} Rab8 {[%clk 00:11:30]}
{[%emt 00:00:25]} 33. Rxb8 {[%clk 00:17:18]} {[%emt 00:01:53]} Rxb8 {[%clk
00:11:55]} {[%emt 00:00:06]} 34. Qc3 {[%clk 00:16:32]} {[%emt 00:01:16]} Ne5
{[%clk 00:08:25]} {[%emt 00:03:59]} 35. c5 {[%clk 00:15:15]} {[%emt 00:01:48]}
Ba6 {[%clk 00:07:57]} {[%emt 00:00:58]} 36. Kd1 {[%clk 00:11:57]} {[%emt
00:03:47]} Nd3 {[%clk 00:07:25]} {[%emt 00:01:03]} 37. Rf1 {[%clk 00:10:36]}
{[%emt 00:01:51]} Nb2+ {[%clk 00:07:09]} {[%emt 00:00:46]} 38. Kc1 {[%clk
00:10:22]} {[%emt 00:00:43]} Bxf1 {[%clk 00:07:22]} {[%emt 00:00:17]} 39. Nxf1
{[%clk 00:10:41]} {[%emt 00:00:12]} Qd5 {[%clk 00:06:32]} {[%emt 00:01:19]} 40.
Nd2 {[%clk 00:10:00]} {[%emt 00:01:12]} Nd3+ {[%emt 00:00:27]} 0-1

[Event "NJSK 2022 Meisjes A&B"]
[Site "Almelo, Netherlands"]
[Date "2022.05.02"]
[Round "2.5"]
[White "Tangarife Ramirez, Katja"]
[Black "Jonkman, Amelia"]
[Result "1/2-1/2"]
[TimeControl "90min/40moves + 30min + 30sec/move"]
[WhiteElo "1623"]
[BlackElo "1552"]

1. d4 {[%clk 01:30:57]} {[%emt 00:00:02]} Nf6 {[%clk 01:30:56]} {[%emt
00:00:06]} 2. c4 {[%clk 01:31:10]} {[%emt 00:00:17]} g6 {[%clk 01:31:17]}
{[%emt 00:00:09]} 3. Nc3 {[%clk 01:31:27]} {[%emt 00:00:13]} d6 {[%clk
01:30:34]} {[%emt 00:01:13]} 4. Nf3 {[%clk 01:30:50]} {[%emt 00:01:06]} Bg7
{[%clk 01:30:24]} {[%emt 00:00:40]} 5. e4 {[%clk 01:30:36]} {[%emt 00:00:43]}
Nbd7 {[%clk 01:30:00]} {[%emt 00:00:55]} 6. Be2 {[%clk 01:29:50]} {[%emt
00:01:15]} e5 {[%clk 01:24:09]} {[%emt 00:06:21]} 7. d5 {[%clk 01:28:00]}
{[%emt 00:02:19]} O-O {[%clk 01:23:15]} {[%emt 00:01:25]} 8. Be3 {[%clk
01:25:29]} {[%emt 00:03:01]} b6 {[%clk 01:20:26]} {[%emt 00:03:19]} 9. b4
{[%clk 01:23:58]} {[%emt 00:02:00]} a5 {[%clk 01:19:17]} {[%emt 00:01:39]} 10.
a3 {[%clk 01:19:42]} {[%emt 00:04:46]} Bb7 {[%clk 01:13:23]} {[%emt 00:06:25]}
11. Rb1 {[%clk 01:14:52]} {[%emt 00:05:20]} axb4 {[%clk 00:52:52]} {[%emt
00:21:01]} 12. axb4 {[%clk 01:14:41]} {[%emt 00:00:40]} Ba6 {[%clk 00:44:27]}
{[%emt 00:08:56]} 13. O-O {[%clk 01:08:58]} {[%emt 00:06:13]} h6 {[%clk
00:36:04]} {[%emt 00:08:54]} 14. h3 {[%clk 01:06:29]} {[%emt 00:02:58]} Qe7
{[%clk 00:33:58]} {[%emt 00:02:36]} 15. Qd2 {[%clk 01:03:28]} {[%emt 00:03:31]}
Kh7 {[%clk 00:31:31]} {[%emt 00:02:58]} 16. Ra1 {[%clk 00:52:11]} {[%emt
00:11:47]} Rfb8 {[%clk 00:26:18]} {[%emt 00:05:43]} 17. Ra2 {[%clk 00:48:02]}
{[%emt 00:04:39]} Bb7 {[%clk 00:25:03]} {[%emt 00:01:46]} 18. Rfa1 {[%clk
00:47:14]} {[%emt 00:01:17]} Qd8 {[%clk 00:19:48]} {[%emt 00:05:46]} 19. Qc2
{[%clk 00:42:44]} {[%emt 00:05:00]} Rxa2 {[%clk 00:18:21]} {[%emt 00:01:57]} 20.
Rxa2 {[%clk 00:42:39]} {[%emt 00:00:33]} Ra8 {[%clk 00:18:30]} {[%emt
00:00:22]} 21. Rxa8 {[%clk 00:39:42]} {[%emt 00:03:28]} Qxa8 {[%clk 00:18:41]}
{[%emt 00:00:19]} 22. Nb5 {[%clk 00:39:38]} {[%emt 00:00:33]} Ne8 {[%clk
00:16:17]} {[%emt 00:02:54]} 23. Qc3 {[%clk 00:32:44]} {[%emt 00:07:24]} Ndf6
{[%clk 00:09:02]} {[%emt 00:07:45]} 24. Bd3 {[%clk 00:29:50]} {[%emt 00:03:24]}
Qa4 {[%clk 00:07:01]} {[%emt 00:02:31]} 25. Nd2 {[%clk 00:24:22]} {[%emt
00:05:58]} Nd7 {[%clk 00:04:20]} {[%emt 00:03:12]} 26. Qb3 {[%clk 00:19:33]}
{[%emt 00:05:18]} Qxb3 {[%clk 00:03:42]} {[%emt 00:01:09]} 27. Nxb3 {[%clk
00:19:55]} {[%emt 00:00:08]} Nb8 {[%clk 00:02:57]} {[%emt 00:01:15]} 28. c5
{[%clk 00:18:27]} {[%emt 00:01:57]} bxc5 {[%clk 00:03:16]} {[%emt 00:00:12]} 29.
bxc5 {[%clk 00:18:46]} {[%emt 00:00:09]} Ba6 {[%clk 00:02:51]} {[%emt
00:00:56]} 30. Bf1 {[%clk 00:17:43]} {[%emt 00:01:32]} f5 {[%clk 00:02:22]}
{[%emt 00:01:00]} 31. f3 {[%clk 00:15:42]} {[%emt 00:02:31]} fxe4 {[%clk
00:01:45]} {[%emt 00:01:07]} 32. fxe4 {[%clk 00:15:55]} {[%emt 00:00:16]} dxc5
{[%clk 00:01:08]} {[%emt 00:01:08]} 33. Nxc5 {[%clk 00:14:00]} {[%emt
00:02:24]} c6 {[%clk 00:00:53]} {[%emt 00:00:46]} 34. dxc6 {[%clk 00:11:37]}
{[%emt 00:02:52]} Bxb5 {[%clk 00:01:05]} {[%emt 00:00:18]} 35. Bxb5 {[%clk
00:11:43]} {[%emt 00:00:24]} Nc7 {[%clk 00:01:16]} {[%emt 00:00:20]} 36. Ba4
{[%clk 00:11:39]} {[%emt 00:00:34]} Bf8 {[%clk 00:01:14]} {[%emt 00:00:32]} 37.
Nd7 {[%clk 00:11:26]} {[%emt 00:00:43]} Nxd7 {[%emt 00:00:37]} 38. cxd7 {[%clk
00:11:46]} {[%emt 00:00:07]} Ne6 {[%clk 00:01:27]} {[%emt 00:00:13]} 39. Kf2
{[%clk 00:08:57]} {[%emt 00:03:18]} Kg7 {[%clk 00:01:41]} {[%emt 00:00:17]} 40.
Bd2 {[%clk 00:08:01]} {[%emt 00:01:25]} Be7 {[%clk 00:01:33]} {[%emt 00:00:39]}
41. Ke2 {[%clk 00:06:53]} {[%emt 00:01:36]} Bd8 {[%clk 00:30:16]} {[%emt
00:01:49]} 42. Bb4 {[%clk 00:35:18]} {[%emt 00:02:05]} Nf4+ {[%clk 00:25:04]}
{[%emt 00:05:43]} 43. Kf3 {[%clk 00:34:22]} {[%emt 00:01:25]} Nh5 {[%clk
00:21:56]} {[%emt 00:03:39]} 44. Bd6 {[%clk 00:29:36]} {[%emt 00:05:16]} Kf6
{[%clk 00:19:54]} {[%emt 00:02:32]} 45. Bb3 {[%clk 00:26:37]} {[%emt 00:03:28]}
Nf4 {[%clk 00:12:56]} {[%emt 00:07:30]} 46. Bf8 {[%clk 00:24:00]} {[%emt
00:03:06]} h5 {[%clk 00:13:02]} {[%emt 00:00:23]} 47. h4 {[%clk 00:22:33]}
{[%emt 00:01:56]} Ne6 {[%clk 00:12:55]} {[%emt 00:00:38]} 48. Bxe6 {[%clk
00:17:16]} {[%emt 00:05:46]} Kxe6 {[%clk 00:13:11]} {[%emt 00:00:14]} 49. g3
{[%clk 00:17:09]} {[%emt 00:00:37]} Kxd7 {[%clk 00:13:09]} {[%emt 00:00:33]} 50.
Bh6 {[%clk 00:15:27]} {[%emt 00:02:12]} 1/2-1/2

[Event "NJSK 2022 Meisjes A&B"]
[Site "Almelo, Netherlands"]
[Date "2022.05.02"]
[Round "2.6"]
[White "Ganeshram, Nirupa"]
[Black "Bogouslavskii, Veronique"]
[Result "1-0"]
[TimeControl "90min/40moves + 30min + 30sec/move"]
[WhiteElo "1546"]
[BlackElo "1618"]

1. e4 {[%clk 01:30:58]} {[%emt 00:00:01]} e5 {[%clk 01:30:54]} {[%emt
00:00:07]} 2. Nf3 {[%clk 01:31:20]} {[%emt 00:00:08]} Nc6 {[%clk 01:31:19]}
{[%emt 00:00:05]} 3. Nc3 {[%clk 01:31:42]} {[%emt 00:00:08]} Nf6 {[%clk
01:31:37]} {[%emt 00:00:12]} 4. Bb5 {[%clk 01:32:00]} {[%emt 00:00:12]} Bc5
{[%clk 01:31:50]} {[%emt 00:00:17]} 5. O-O {[%clk 01:32:02]} {[%emt 00:00:27]}
d6 {[%clk 01:31:54]} {[%emt 00:00:26]} 6. d4 {[%clk 01:31:05]} {[%emt
00:01:27]} exd4 {[%clk 01:31:21]} {[%emt 00:01:03]} 7. Nxd4 {[%clk 01:31:23]}
{[%emt 00:00:12]} Bd7 {[%clk 01:27:43]} {[%emt 00:04:07]} 8. Bxc6 {[%clk
01:22:52]} {[%emt 00:09:02]} bxc6 {[%clk 01:24:12]} {[%emt 00:04:00]} 9. h3
{[%clk 01:20:38]} {[%emt 00:02:44]} O-O {[%clk 01:19:38]} {[%emt 00:05:04]} 10.
Bg5 {[%clk 01:17:57]} {[%emt 00:03:11]} Qe7 {[%clk 01:17:46]} {[%emt 00:02:21]}
11. Nb3 {[%clk 01:09:41]} {[%emt 00:08:46]} Bb6 {[%clk 01:08:25]} {[%emt
00:09:51]} 12. Qf3 {[%clk 01:02:31]} {[%emt 00:07:40]} Qe5 {[%clk 01:06:15]}
{[%emt 00:02:40]} 13. Bxf6 {[%clk 01:01:23]} {[%emt 00:01:39]} gxf6 {[%clk
01:04:46]} {[%emt 00:01:59]} 14. Kh1 {[%clk 00:41:34]} {[%emt 00:20:19]} a6
{[%clk 01:01:58]} {[%emt 00:03:18]} 15. Rab1 {[%clk 00:29:37]} {[%emt
00:12:26]} Kh8 {[%clk 00:55:44]} {[%emt 00:06:44]} 16. Ne2 {[%clk 00:24:09]}
{[%emt 00:05:58]} f5 {[%clk 00:49:39]} {[%emt 00:06:35]} 17. Ng3 {[%clk
00:17:40]} {[%emt 00:06:59]} fxe4 {[%clk 00:47:30]} {[%emt 00:02:38]} 18. Nxe4
{[%clk 00:15:49]} {[%emt 00:02:21]} Qf5 {[%clk 00:38:05]} {[%emt 00:09:55]} 19.
Nbd2 {[%clk 00:11:51]} {[%emt 00:04:28]} Qxf3 {[%clk 00:37:46]} {[%emt
00:00:49]} 20. Nxf3 {[%clk 00:06:07]} {[%emt 00:06:14]} Bf5 {[%clk 00:33:24]}
{[%emt 00:04:52]} 21. Ng3 {[%clk 00:03:10]} {[%emt 00:03:28]} Bxc2 {[%clk
00:32:32]} {[%emt 00:01:21]} 22. Rbc1 {[%clk 00:03:07]} {[%emt 00:00:33]} Bd3
{[%clk 00:30:59]} {[%emt 00:02:03]} 23. Rfd1 {[%clk 00:03:16]} {[%emt
00:00:21]} Be2 {[%clk 00:29:11]} {[%emt 00:02:17]} 24. Nxe2 {[%clk 00:03:02]}
{[%emt 00:00:44]} Bxf2 {[%clk 00:29:07]} {[%emt 00:00:33]} 25. Rxc6 {[%clk
00:02:36]} {[%emt 00:00:57]} Bb6 {[%clk 00:27:58]} {[%emt 00:01:39]} 26. Nc3
{[%clk 00:02:19]} {[%emt 00:00:47]} Ba5 {[%clk 00:25:31]} {[%emt 00:02:56]} 27.
a3 {[%clk 00:02:15]} {[%emt 00:00:35]} Rfc8 {[%clk 00:22:26]} {[%emt 00:03:35]}
28. b4 {[%clk 00:02:22]} {[%emt 00:00:22]} Bb6 {[%clk 00:22:51]} {[%emt
00:00:05]} 29. Nd5 {[%clk 00:02:24]} {[%emt 00:00:28]} Bf2 {[%clk 00:22:48]}
{[%emt 00:00:33]} 30. Rxc7 {[%clk 00:02:18]} {[%emt 00:00:36]} Rxc7 {[%clk
00:22:42]} {[%emt 00:00:36]} 31. Nxc7 {[%clk 00:02:40]} {[%emt 00:00:08]} Ra7
{[%clk 00:23:10]} {[%emt 00:00:02]} 32. Ne8 {[%clk 00:02:30]} {[%emt 00:00:40]}
Bg3 {[%clk 00:23:28]} {[%emt 00:00:11]} 33. Ng5 {[%clk 00:01:59]} {[%emt
00:01:02]} Re7 {[%clk 00:22:34]} {[%emt 00:01:25]} 34. Nxd6 {[%clk 00:01:24]}
{[%emt 00:01:05]} Rc7 {[%clk 00:21:22]} {[%emt 00:01:42]} 35. Nf5 {[%clk
00:01:08]} {[%emt 00:00:46]} h6 {[%clk 00:20:36]} {[%emt 00:01:16]} 36. Rd8#
{[%clk 00:01:25]} {[%emt 00:00:13]} 1-0

[Event "NJSK 2022 Meisjes A&B"]
[Site "Almelo, Netherlands"]
[Date "2022.05.02"]
[Round "2.7"]
[White "Mensing, Luana"]
[Black "Wortman, Manixia"]
[Result "1-0"]
[TimeControl "90min/40moves + 30min + 30sec/move"]
[WhiteElo "1604"]
[BlackElo "1432"]

1. e4 {[%clk 01:30:58]} {[%emt 00:00:01]} c5 {[%clk 01:30:55]} {[%emt
00:00:06]} 2. c3 {[%clk 01:31:22]} {[%emt 00:00:06]} d5 {[%clk 01:31:17]}
{[%emt 00:00:08]} 3. exd5 {[%clk 01:31:45]} {[%emt 00:00:07]} Qxd5 {[%clk
01:31:39]} {[%emt 00:00:07]} 4. d4 {[%clk 01:32:06]} {[%emt 00:00:09]} cxd4
{[%clk 01:31:30]} {[%emt 00:00:39]} 5. cxd4 {[%clk 01:32:18]} {[%emt 00:00:18]}
e5 {[%clk 01:31:53]} {[%emt 00:00:07]} 6. Be3 {[%clk 01:32:25]} {[%emt
00:00:22]} Nc6 {[%clk 01:32:08]} {[%emt 00:00:15]} 7. Nc3 {[%clk 01:32:08]}
{[%emt 00:00:47]} Qd6 {[%clk 01:31:48]} {[%emt 00:00:50]} 8. d5 {[%clk
01:25:58]} {[%emt 00:06:40]} Nce7 {[%clk 01:29:23]} {[%emt 00:02:54]} 9. Nb5
{[%clk 01:25:08]} {[%emt 00:01:21]} Qb4+ {[%clk 01:24:47]} {[%emt 00:05:06]} 10.
Qd2 {[%clk 01:22:50]} {[%emt 00:02:48]} Nxd5 {[%clk 01:23:33]} {[%emt
00:01:44]} 11. O-O-O {[%clk 01:17:31]} {[%emt 00:05:49]} Qxd2+ {[%clk
01:21:20]} {[%emt 00:02:42]} 12. Rxd2 {[%clk 01:17:20]} {[%emt 00:00:41]} Ngf6
{[%clk 01:21:37]} {[%emt 00:00:13]} 13. Bc4 {[%clk 01:14:03]} {[%emt 00:03:47]}
a6 {[%clk 01:21:14]} {[%emt 00:00:53]} 14. Bxd5 {[%clk 01:12:06]} {[%emt
00:02:27]} axb5 {[%clk 01:21:27]} {[%emt 00:00:18]} 15. Bb3 {[%clk 01:09:39]}
{[%emt 00:02:56]} Bb4 {[%clk 01:21:12]} {[%emt 00:00:45]} 16. Rd1 {[%clk
01:08:17]} {[%emt 00:01:52]} Bd7 {[%clk 01:19:54]} {[%emt 00:01:48]} 17. Kb1
{[%clk 01:03:51]} {[%emt 00:04:56]} Bc6 {[%clk 01:18:54]} {[%emt 00:01:30]} 18.
Nf3 {[%clk 01:00:02]} {[%emt 00:04:19]} Ng4 {[%clk 01:13:18]} {[%emt 00:06:06]}
19. Ng5 {[%clk 00:36:58]} {[%emt 00:23:33]} O-O {[%clk 01:09:42]} {[%emt
00:04:05]} 20. h3 {[%clk 00:31:05]} {[%emt 00:06:24]} Nxe3 {[%clk 01:08:54]}
{[%emt 00:01:18]} 21. fxe3 {[%clk 00:31:15]} {[%emt 00:00:19]} h6 {[%clk
01:05:01]} {[%emt 00:04:23]} 22. Nf3 {[%clk 00:22:55]} {[%emt 00:08:51]} Rfe8
{[%clk 00:59:04]} {[%emt 00:06:27]} 23. Rhf1 {[%clk 00:21:48]} {[%emt
00:01:37]} e4 {[%clk 00:56:49]} {[%emt 00:02:46]} 24. Nh4 {[%clk 00:20:05]}
{[%emt 00:02:12]} Re7 {[%clk 00:55:57]} {[%emt 00:01:22]} 25. Ng6 {[%clk
00:16:58]} {[%emt 00:03:37]} Rc7 {[%clk 00:55:42]} {[%emt 00:00:46]} 26. Ne5
{[%clk 00:16:21]} {[%emt 00:01:07]} Rf8 {[%clk 00:55:35]} {[%emt 00:00:36]} 27.
Rf4 {[%clk 00:15:19]} {[%emt 00:01:32]} Bc5 {[%clk 00:54:00]} {[%emt 00:02:05]}
28. Rdf1 {[%clk 00:13:59]} {[%emt 00:01:50]} Bxe3 {[%clk 00:49:16]} {[%emt
00:05:14]} 29. Bxf7+ {[%clk 00:14:04]} {[%emt 00:00:26]} Kh8 {[%clk 00:49:16]}
{[%emt 00:00:30]} 30. Ng6+ {[%clk 00:14:28]} {[%emt 00:00:07]} Kh7 {[%clk
00:48:47]} {[%emt 00:00:59]} 31. Nxf8+ {[%emt 00:00:08]} Kh8 {[%clk 00:48:54]}
{[%emt 00:00:21]} 32. Rg4 {[%clk 00:12:36]} {[%emt 00:02:46]} g5 {[%clk
00:45:40]} {[%emt 00:03:44]} 33. h4 {[%clk 00:06:18]} {[%emt 00:06:48]} 1-0